fUSD/lending_fUSD_20260116
["ID","MTS","AMOUNT","RATE_DAILY","PERIOD"]
[402119188,1768529444501,-1000.0,0.00019957,2]
[402119189,1768529444510,-1000.0,0.00019958,2]
[402119190,1768529444519,-1000.0,0.00019959,2]
[402119191,1768529444528,-1000.0,0.00019962,2]
[402119192,1768529444537,-1000.0,0.00019965,2]
[402119193,1768529444546,-1000.0,0.00019968,2]
[402119194,1768529444555,-1000.0,0.00019975,2]
[402119195,1768529444564,-1000.0,0.00019993,2]
[402119196,1768529444575,-1000.0,0.00019994,2]
[402119197,1768529444584,-1000.0,0.00019995,2]
[402119198,1768529444593,-1000.0,0.00020002,2]
[402119199,1768529444602,-1000.0,0.00020006,2]
[402119200,1768529444612,-1000.0,0.00020009,2]
[402119201,1768529444621,-1000.0,0.00020014,2]
[402119202,1768529444632,-1000.0,0.00020027,2]
[402119203,1768529444643,-1000.0,0.00020029,2]
[402119204,1768529444654,-1000.0,0.0002003,2]
[402119205,1768529444664,-1000.0,0.0002003,2]
[402119206,1768529444673,-1000.0,0.0002003,2]
[402119207,1768529444682,-1000.0,0.00020032,2]
[402119208,1768529444691,-1000.0,0.00020048,2]
[402119209,1768529444700,-1000.0,0.00020054,2]
[402119210,1768529444709,-1000.0,0.00020056,2]
[402119211,1768529444718,-1000.0,0.00020058,2]
[402119212,1768529444727,-1000.0,0.00020064,2]
[402119213,1768529444735,-1000.0,0.00020071,2]
[402119214,1768529444744,-157.11,0.00020077,2]
[402119215,1768529444753,-1000.0,0.00020081,2]
[402119216,1768529444762,-1000.0,0.00020088,2]
[402119217,1768529444771,-1000.0,0.00020094,2]
[402119218,1768529444780,-1000.0,0.00020095,2]
[402119219,1768529444789,-1000.0,0.00020098,2]
[402119220,1768529444798,-1000.0,0.00020098,2]
[402119221,1768529444807,-1000.0,0.00020099,2]
[402119222,1768529444817,-1000.0,0.00020106,2]
[402119223,1768529444826,-1000.0,0.00020107,2]
[402119224,1768529444835,-1000.0,0.00020108,2]
[402119225,1768529444845,-1000.0,0.00020122,2]
[402119226,1768529444854,-1000.0,0.00020125,2]
[402119227,1768529444863,-1000.0,0.00020131,2]
[402119228,1768529444873,-166.66,0.00020138,2]
[402119229,1768529444882,-409.96687693,0.00020163,2]
[402119230,1768529444892,-1000.0,0.00020168,2]
[402119231,1768529444902,-1000.0,0.00020171,2]
[402119232,1768529444911,-1000.0,0.00020172,2]
[402119233,1768529444921,-1000.0,0.00020181,2]
[402119234,1768529444930,-1000.0,0.00020185,2]
[402119235,1768529444940,-5101.45,0.00020191,2]
[402119236,1768529444949,-258.82,0.00020234,2]
[402119237,1768529444958,-1006.75696579,0.0002026,2]
[402119238,1768529444968,-85950.8477148,0.00020299,2]
[402119239,1768529444977,-151.0,0.00020299,2]
[402119240,1768529444987,-151.0,0.00020299,2]
[402119241,1768529444996,-151.0,0.00020299,2]
[402119242,1768529445005,-151.0,0.00020299,2]
[402119243,1768529445015,-151.0,0.00020299,2]
[402119244,1768529445024,-757.8,0.00020442,2]
[402119245,1768529445034,-151.51489583,0.00020506,5]
[402119246,1768529445043,-3292.0,0.0002065,2]
[402119247,1768529445052,-166.66,0.00020726,2]
[402119248,1768529445062,-1855.0,0.00020835,2]
[402119249,1768529445071,-153.54,0.000209,3]
[402119250,1768529445080,-1000.0,0.00021128,2]
[402119251,1768529445090,-258.82,0.00021153,2]
[402119252,1768529445099,-150.0,0.00021195,2]
[402119253,1768529445107,-253.0509222,0.00021255,2]
[402119254,1768529445116,-150.0,0.00021375,2]
[402119255,1768529445125,-216.73549128,0.00021423,2]
[402119256,1768529445134,-1600.0,0.00021689,2]
[402119257,1768529445143,-150.0,0.00021748,2]
[402119258,1768529445152,-8977.36,0.00021757,2]
[402119259,1768529445161,-1185.87,0.00021757,2]
[402119260,1768529445171,-9999.99,0.00021757,2]
[402119261,1768529445184,-5000.0,0.00021918,2]
[402119262,1768529445193,-288.66752471,0.00022062,2]
[402119263,1768529445202,-258.82,0.00022073,2]
[402119264,1768529445211,-157.11,0.00022472,2]
[402119265,1768529445221,-154.006185,0.00022602,2]
[402119266,1768529445231,-151.318326,0.00022602,2]
[402119267,1768529445239,-151.0,0.00022602,2]
[402119268,1768529445249,-151.0,0.00022602,2]
[402119269,1768529445258,-151.0,0.00022602,2]
[402119270,1768529445268,-151.0,0.00022602,2]
[402119271,1768529445277,-380.509999,0.00022602,2]
[402119272,1768529445286,-380.509999,0.00022602,2]
[402119273,1768529445296,-380.509999,0.00022602,2]
[402119274,1768529445305,-380.509999,0.00022602,2]
[402119275,1768529445314,-157.375428,0.00022602,2]
[402119276,1768529445323,-85950.8477148,0.00022602,2]
[402119277,1768529445332,-757.8,0.00022617,2]
[402119278,1768529445341,-4609.0,0.00022702,2]
[402119279,1768529445351,-258.82,0.00022993,2]
[402119280,1768529445360,-247.07,0.00023,5]
[402119281,1768529445370,-1000.0,0.00023241,2]
[402119282,1768529445379,-1600.0,0.00023661,2]
[402119283,1768529445388,-258.82,0.00023912,2]
[402119284,1768529445398,-7770.94,0.00024242,2]
[402119285,1768529445407,-1000.0,0.00024658,2]
[402119286,1768529445416,-253.0509222,0.0002471,2]
[402119287,1768529445425,-757.8,0.00024792,2]
[402119288,1768529445435,-258.82,0.00024832,2]
[402119289,1768529445444,-121625.625574,0.000249,2]
[402119290,1768529445453,-85950.8477148,0.00024906,2]
[402119291,1768529445462,-216.73549128,0.00024946,2]
[402119293,1768529445471,-6453.0,0.00024958,2]
[402119294,1768529445480,-201.0,0.00025,12]
[402119295,1768529445489,-257.0,0.000252,2]
[402119296,1768529445498,-403.0,0.000252,2]
[402119297,1768529445508,-1000.0,0.00025354,2]
[402119298,1768529445517,-5463.0,0.000263,5]
[402119299,1768529445527,-757.8,0.00026967,2]
[402119300,1768529445536,-513.0,0.00027137,2]
[402119301,1768529445544,-150.0,0.00027369,2]
[402119302,1768529445553,-500.0,0.00027397,20]
[402119303,1768529445562,-6089.0,0.00027438,2]
[402119304,1768529445571,-253.0509222,0.00028165,2]
[402119306,1768529445580,-4847.822,0.00028388,2]
[402119307,1768529445589,-2135.22094602,0.000284,2]
[402119308,1768529445598,-3441.83368471,0.000284,2]
[402119309,1768529445608,-216.73549128,0.0002847,2]
[402119310,1768529445618,-197.94498684,0.00028473,2]
[402119311,1768529445628,-150.0,0.0002863,2]
[402119312,1768529445638,-757.8,0.00029142,2]
[402119313,1768529445648,-467.06,0.00029247,2]
[402119314,1768529445657,-1041.86673573,0.00029402,2]
[402119315,1768529445667,-1340.47,0.00029424,2]
[402119316,1768529445677,-150.1,0.00029549,3]
[402119317,1768529445687,-150.1,0.00029549,3]
[402119318,1768529445699,-152.06142284,0.00029549,3]
[402119319,1768529445709,-152.0,0.000298,30]
[402119320,1768529445717,-152.0,0.000298,30]
[402119321,1768529445727,-200.0,0.0003013,2]
[402119322,1768529445736,-200.0,0.0003013,2]
[402119323,1768529445745,-600.0,0.00030404,120]
[402119324,1768529445754,-600.0,0.00030404,120]
[402119325,1768529445763,-200.0,0.00030431,2]
[402119326,1768529445773,-600.0,0.00030678,120]
[402119327,1768529445782,-600.0,0.00030678,120]
[402119328,1768529445791,-467.43,0.00030685,2]
[402119329,1768529445799,-1791.19,0.00030685,2]
[402119330,1768529445808,-1227.42,0.00030898,2]
[402119331,1768529445817,-1227.42,0.00030898,2]
[402119332,1768529445827,-2454.84,0.00030933,2]
[402119333,1768529445838,-1227.42,0.00030933,2]
[402119334,1768529445849,-1227.42,0.00030933,2]
[402119335,1768529445858,-1227.42,0.00030933,2]
[402119336,1768529445867,-1227.42,0.00030933,2]
[402119337,1768529445877,-1261.47,0.00030933,2]
[402119338,1768529445886,-1227.42,0.00030933,2]
[402119339,1768529445895,-1227.42,0.00030933,2]
[402119340,1768529445905,-1227.42,0.00030933,2]
[402119341,1768529445914,-1227.42,0.00030933,2]
[402119342,1768529445923,-1227.42,0.00030933,2]
[402119343,1768529445933,-1227.42,0.00030933,2]
[402119344,1768529445942,-2454.84,0.00030933,2]
[402119345,1768529445951,-1227.42,0.00030933,2]
[402119346,1768529445961,-1227.42,0.00030933,2]
[402119347,1768529445971,-1227.42,0.00030933,2]
[402119348,1768529445980,-1227.42,0.00030933,2]
[402119349,1768529445989,-600.0,0.00030952,120]
[402119350,1768529445998,-600.0,0.00030952,120]
[402119351,1768529446007,-246.46,0.00031,7]
[402119352,1768529446016,-152.0,0.00031,120]
[402119353,1768529446026,-152.0,0.00031,120]
[402119354,1768529446035,-152.0,0.00031093,3]
[402119355,1768529446044,-5738.0,0.00031096,2]
[402119356,1768529446053,-600.0,0.00031226,120]
[402119357,1768529446062,-600.0,0.00031226,120]
[402119358,1768529446071,-757.8,0.00031316,2]
[402119359,1768529446081,-150.0,0.00031493,2]
[402119360,1768529446090,-600.0,0.000315,120]
[402119361,1768529446099,-150.0,0.000315,30]
[402119362,1768529446108,-253.0509222,0.0003162,2]
[402119363,1768529446118,-1037.47,0.00031755,2]
[402119364,1768529446127,-600.0,0.00031774,120]
[402119365,1768529446136,-600.0,0.00031774,120]
[402119366,1768529446145,-216.73549128,0.00031993,2]
[402119367,1768529446165,-650.0,0.00032,120]
[402119368,1768529446179,-600.0,0.00032048,120]
[402119369,1768529446191,-600.0,0.00032048,120]
[402119370,1768529446200,-600.0,0.00032322,120]
[402119371,1768529446210,-600.0,0.00032322,120]
[402119372,1768529446221,-467.43,0.00032559,2]
[402119373,1768529446232,-150.0,0.0003256,2]
[402119374,1768529446242,-171.57,0.0003256,2]
[402119375,1768529446255,-184.67,0.0003256,2]
[402119376,1768529446265,-150.0,0.00032575,2]
[402119377,1768529446275,-150.0,0.00032575,2]
[402119378,1768529446284,-150.0,0.00032575,2]
[402119379,1768529446294,-600.0,0.00032596,120]
[402119380,1768529446304,-600.0,0.00032596,120]
[402119381,1768529446314,-600.0,0.0003287,120]
[402119382,1768529446324,-600.0,0.0003287,120]
[402119383,1768529446335,-151.0,0.00032877,3]
[402119384,1768529446344,-151.0,0.00032877,3]
[402119385,1768529446353,-151.0,0.00032877,3]
[402119386,1768529446363,-151.0,0.00032877,3]
[402119387,1768529446372,-151.0,0.00032877,3]
[402119388,1768529446381,-151.0,0.00032877,3]
[402119389,1768529446390,-500.0,0.00032877,2]
[402119390,1768529446399,-500.0,0.00032932,2]
[402119391,1768529446408,-362.81384374,0.00032987,2]
[402119392,1768529446417,-152.0,0.00033,120]
[402119393,1768529446427,-152.0,0.00033,120]
[402119394,1768529446437,-600.0,0.00033144,120]
[402119395,1768529446448,-600.0,0.00033418,120]
[402119396,1768529446459,-757.8,0.00033491,5]
[402119397,1768529446468,-600.0,0.00033692,120]
[402119398,1768529446478,-150.0,0.000339,30]
[402119399,1768529446487,-1505.6348564,0.00033911,120]
[402119400,1768529446496,-600.0,0.00033919,7]
[402119401,1768529446507,-600.0,0.00033966,120]
[402119402,1768529446522,-2000.0,0.00034,120]
[402119403,1768529446532,-600.0,0.00034064,7]
[402119404,1768529446542,-600.0,0.00034122,7]
[402119405,1768529446551,-600.0,0.00034133,7]
[402119406,1768529446561,-600.0,0.00034158,7]
[402119407,1768529446573,-600.0,0.00034205,7]
[402119408,1768529446582,-247.07,0.000343,10]
[402119409,1768529446592,-150.0,0.00034356,2]
[402119410,1768529446602,-1997.01291093,0.00034459,2]
[402119411,1768529446613,-500.0,0.00034638,7]
[402119412,1768529446625,-151.0,0.00034638,7]
[402119413,1768529446635,-151.0,0.00034638,7]
[402119414,1768529446644,-151.0,0.00034638,7]
[402119415,1768529446654,-160.041244,0.00034638,7]
[402119416,1768529446663,-500.0,0.0003464,7]
[402119417,1768529446673,-500.0,0.00034701,7]
[402119418,1768529446683,-500.0,0.00034705,7]
[402119419,1768529446693,-500.0,0.00034722,7]
[402119420,1768529446704,-176.23844907,0.00034729,7]
[402119421,1768529446714,-600.0,0.00034739,7]
[402119422,1768529446724,-500.0,0.00034759,7]
[402119423,1768529446735,-1000.0,0.000348,60]
[402119424,1768529446744,-1600.0,0.00034881,14]
[402119425,1768529446754,-800.0,0.00034881,14]
[402119426,1768529446764,-500.0,0.00034881,14]
[402119427,1768529446774,-152.0,0.00034948,4]
[402119428,1768529446785,-600.0,0.00034974,7]
[402119429,1768529446796,-172.75979458,0.00034993,7]
[402119430,1768529446806,-1000.0,0.00035,120]
[402119431,1768529446816,-1000.0,0.00035,120]
[402119432,1768529446825,-152.0,0.00035,120]
[402119433,1768529446835,-151.0,0.00035,31]
[402119434,1768529446844,-1153.999999,0.00035,120]
[402119435,1768529446854,-59445.46267276,0.00035,2]
[402119436,1768529446864,-600.0,0.00035066,30]
[402119437,1768529446874,-253.0509222,0.00035075,2]
[402119438,1768529446883,-600.0,0.00035107,30]
[402119439,1768529446897,-500.0,0.00035183,30]
[402119440,1768529446906,-979.93,0.00035199,2]
[402119441,1768529446916,-662.37,0.00035199,2]
[402119442,1768529446926,-662.37,0.00035199,2]
[402119443,1768529446936,-662.37,0.00035199,2]
[402119444,1768529446946,-662.37,0.00035199,2]
[402119445,1768529446956,-705.55,0.00035199,2]
[402119446,1768529446965,-286.8589,0.0003522,30]
[402119447,1768529446975,-500.0,0.00035229,30]
[402119448,1768529446984,-500.0,0.00035277,30]
[402119449,1768529446994,-600.0,0.00035366,30]
[402119450,1768529447003,-176.27487689,0.00035388,30]
[402119451,1768529447013,-500.0,0.00035407,30]
[402119452,1768529447023,-600.0,0.00035419,30]
[402119453,1768529447033,-500.0,0.00035435,30]
[402119454,1768529447042,-500.0,0.0003544,30]
[402119455,1768529447052,-216.73549128,0.00035516,2]
[402119456,1768529447062,-159.21,0.00035523,120]
[402119457,1768529447071,-500.0,0.00035524,120]
[402119458,1768529447085,-3078.73729356,0.00035525,2]
[402119459,1768529447094,-600.0,0.00035539,30]
[402119460,1768529447104,-600.0,0.00035566,30]
[402119461,1768529447113,-155.31781772,0.00035613,14]
[402119462,1768529447124,-151.0,0.00035616,10]
[402119463,1768529447136,-167.450892,0.00035616,10]
[402119464,1768529447145,-157.162011,0.00035616,10]
[402119465,1768529447154,-151.53595,0.00035616,10]
[402119466,1768529447164,-286.613391,0.00035616,10]
[402119467,1768529447176,-167.22803,0.00035616,10]
[402119468,1768529447186,-268.79491973,0.00035616,10]
[402119469,1768529447195,-500.0,0.00035616,10]
[402119470,1768529447205,-500.0,0.00035616,10]
[402119471,1768529447215,-1074.68,0.00035616,10]
[402119472,1768529447225,-1562.76,0.00035616,10]
[402119473,1768529447235,-500.0,0.00035616,10]
[402119474,1768529447245,-278.31179941,0.00035616,10]
[402119475,1768529447255,-957.34,0.00035616,10]
[402119476,1768529447274,-500.0,0.00035616,10]
[402119477,1768529447286,-500.0,0.00035616,10]
[402119478,1768529447299,-500.0,0.00035616,10]
[402119479,1768529447308,-500.0,0.00035616,10]
[402119480,1768529447318,-890.1,0.00035616,10]
[402119481,1768529447328,-500.0,0.00035616,10]
[402119482,1768529447337,-523.64,0.00035616,10]
[402119483,1768529447352,-503.57375243,0.00035616,10]
[402119484,1768529447367,-500.0,0.00035616,10]
[402119485,1768529447381,-593.33,0.00035616,10]
[402119486,1768529447391,-500.0,0.00035616,10]
[402119487,1768529447401,-500.0,0.00035616,10]
[402119488,1768529447411,-500.0,0.00035616,10]
[402119489,1768529447421,-507.50833589,0.00035616,10]
[402119490,1768529447431,-500.0,0.00035616,10]
[402119491,1768529447442,-510.96516392,0.00035616,10]
[402119492,1768529447452,-500.0,0.00035616,10]
[402119493,1768529447462,-573.27,0.00035616,10]
[402119494,1768529447472,-500.0,0.00035616,10]
[402119495,1768529447482,-500.0,0.00035616,10]
[402119496,1768529447492,-500.0,0.00035616,10]
[402119497,1768529447501,-512.89,0.00035616,10]
[402119498,1768529447515,-500.0,0.00035616,10]
[402119499,1768529447525,-500.0,0.00035616,10]
[402119500,1768529447535,-500.0,0.00035616,10]
[402119501,1768529447545,-517.2,0.00035616,10]
[402119502,1768529447554,-500.0,0.00035616,10]
[402119503,1768529447564,-809.12,0.00035616,10]
[402119504,1768529447573,-500.0,0.00035616,10]
[402119505,1768529447583,-505.37480188,0.00035616,10]
[402119506,1768529447592,-500.0,0.00035616,10]
[402119507,1768529447602,-663.6,0.00035616,10]
[402119508,1768529447611,-500.0,0.00035616,10]
[402119509,1768529447621,-500.0,0.00035616,10]
[402119510,1768529447630,-504.40133761,0.00035616,10]
[402119511,1768529447640,-500.0,0.00035616,10]
[402119512,1768529447650,-500.0,0.00035616,10]
[402119513,1768529447660,-500.0,0.00035616,10]
[402119514,1768529447669,-500.0,0.00035616,10]
[402119515,1768529447679,-500.0,0.00035616,10]
[402119516,1768529447688,-500.0,0.00035616,10]
[402119517,1768529447700,-990.39,0.00035616,10]
[402119518,1768529447710,-511.1846764,0.00035616,10]
[402119519,1768529447719,-504.14072538,0.00035616,10]
[402119520,1768529447729,-505.54935538,0.00035616,10]
[402119521,1768529447739,-500.0,0.00035616,10]
[402119522,1768529447748,-504.23380146,0.00035616,10]
[402119523,1768529447758,-502.92510673,0.00035616,10]
[402119524,1768529447767,-535.79,0.00035616,10]
[402119525,1768529447777,-500.0,0.00035616,10]
[402119526,1768529447787,-502.78186927,0.00035616,10]
[402119527,1768529447797,-504.11198711,0.00035616,10]
[402119528,1768529447806,-500.0,0.00035616,10]
[402119529,1768529447816,-756.08,0.00035616,10]
[402119530,1768529447825,-506.71688371,0.00035616,10]
[402119531,1768529447835,-1381.39,0.00035616,10]
[402119532,1768529447845,-500.0,0.00035616,10]
[402119533,1768529447855,-500.0,0.00035616,10]
[402119534,1768529447864,-501.46607283,0.00035616,10]
[402119535,1768529447874,-500.0,0.00035616,10]
[402119536,1768529447884,-506.3123678,0.00035616,10]
[402119537,1768529447894,-627.88268977,0.00035616,10]
[402119538,1768529447903,-500.0,0.00035616,10]
[402119539,1768529447913,-500.0,0.00035616,10]
[402119540,1768529447923,-500.0,0.00035616,10]
[402119541,1768529447934,-500.0,0.00035616,10]
[402119542,1768529447944,-500.0,0.00035616,10]
[402119543,1768529447953,-521.29636723,0.00035616,10]
[402119544,1768529447963,-741.74,0.00035616,10]
[402119545,1768529447972,-504.09591111,0.00035616,10]
[402119546,1768529447982,-558.47,0.00035616,10]
[402119547,1768529447991,-500.0,0.00035616,10]
[402119548,1768529448001,-580.09,0.00035616,10]
[402119549,1768529448011,-831.24,0.00035616,10]
[402119550,1768529448020,-800.34,0.00035616,10]
[402119551,1768529448030,-500.0,0.00035616,10]
[402119552,1768529448039,-502.39766219,0.00035616,2]
[402119553,1768529448048,-500.0,0.00035616,10]
[402119554,1768529448058,-1395.51,0.00035616,10]
[402119555,1768529448068,-517.74,0.00035616,10]
[402119556,1768529448078,-500.0,0.00035616,10]
[402119557,1768529448097,-500.0,0.00035616,10]
[402119558,1768529448107,-1027.56,0.00035616,10]
[402119559,1768529448117,-501.60506344,0.00035616,10]
[402119560,1768529448128,-702.81,0.00035616,10]
[402119561,1768529448138,-513.39,0.00035616,10]
[402119562,1768529448147,-500.0,0.00035616,10]
[402119563,1768529448157,-500.0,0.00035616,10]
[402119564,1768529448169,-641.29,0.00035616,10]
[402119565,1768529448186,-500.0,0.00035616,10]
[402119566,1768529448571,-500.0,0.00035616,10]
[402119567,1768529448581,-616.88,0.00035616,10]
[402119568,1768529448590,-503.94482505,0.00035616,10]
[402119569,1768529448599,-623.27,0.00035616,10]
[402119570,1768529448608,-500.0,0.00035616,10]
[402119571,1768529448617,-500.0,0.00035616,10]
[402119572,1768529448627,-500.0,0.00035616,10]
[402119573,1768529448637,-682.85,0.00035616,10]
[402119574,1768529448646,-500.0,0.00035616,10]
[402119575,1768529448656,-1082.46,0.00035616,10]
[402119576,1768529448665,-562.45819903,0.00035616,10]
[402119577,1768529448675,-500.0,0.00035616,10]
[402119578,1768529448684,-500.0,0.00035616,10]
[402119579,1768529448693,-1092.39,0.00035616,10]
[402119580,1768529448704,-500.0,0.00035616,10]
[402119581,1768529448713,-500.0,0.00035616,10]
[402119582,1768529448722,-500.0,0.00035616,10]
[402119583,1768529448737,-500.0,0.00035616,10]
[402119584,1768529448749,-544.89,0.00035616,10]
[402119585,1768529448760,-385.01759831,0.00035616,10]
[402119586,1768529448771,-579.72,0.00035616,10]
[402119587,1768529448781,-500.0,0.00035616,10]
[402119588,1768529448792,-500.0,0.00035616,10]
[402119589,1768529448803,-502.37318518,0.00035616,10]
[402119590,1768529448814,-155.20489465,0.00035616,10]
[402119591,1768529448825,-500.0,0.00035616,10]
[402119592,1768529448836,-500.0,0.00035616,10]
[402119593,1768529448846,-500.0,0.00035616,10]
[402119594,1768529448856,-500.0,0.00035616,10]
[402119595,1768529448865,-1514.61,0.00035616,10]
[402119596,1768529448875,-504.93650957,0.00035616,10]
[402119597,1768529448886,-539.49249373,0.00035616,10]
[402119598,1768529448895,-504.29656829,0.00035616,10]
[402119599,1768529448905,-500.0,0.00035616,10]
[402119600,1768529448915,-500.0,0.00035616,10]
[402119601,1768529448927,-500.0,0.00035616,10]
[402119602,1768529448936,-634.0,0.00035616,10]
[402119603,1768529448946,-500.0,0.00035616,10]
[402119604,1768529448955,-500.0,0.00035616,10]
[402119605,1768529448965,-500.0,0.00035616,10]
[402119606,1768529448975,-631.92,0.00035616,10]
[402119607,1768529448984,-500.0,0.00035616,10]
[402119608,1768529448994,-503.31171979,0.00035616,10]
[402119609,1768529449004,-500.0,0.00035616,10]
[402119610,1768529449013,-500.0,0.00035616,10]
[402119611,1768529449023,-674.16,0.00035616,10]
[402119612,1768529449032,-500.0,0.00035616,10]
[402119613,1768529449042,-500.0,0.00035616,10]
[402119614,1768529449052,-413.49619943,0.00035616,10]
[402119615,1768529449061,-801.13,0.00035616,10]
[402119616,1768529449070,-500.0,0.00035616,10]
[402119617,1768529449080,-500.0,0.00035616,10]
[402119618,1768529449090,-500.0,0.00035616,10]
[402119619,1768529449100,-500.0,0.00035616,10]
[402119620,1768529449108,-500.0,0.00035616,10]
[402119621,1768529449118,-504.46147951,0.00035616,10]
[402119622,1768529449127,-500.0,0.00035616,10]
[402119623,1768529449136,-500.0,0.00035616,10]
[402119624,1768529449145,-510.10677801,0.00035616,10]
[402119625,1768529449155,-1689.87,0.00035616,10]
[402119626,1768529449165,-500.0,0.00035616,10]
[402119627,1768529449176,-500.0,0.00035616,10]
[402119628,1768529449186,-500.0,0.00035616,10]
[402119629,1768529449195,-500.0,0.00035616,10]
[402119630,1768529449205,-626.18,0.00035616,10]
[402119631,1768529449216,-500.0,0.00035616,10]
[402119632,1768529449225,-500.0,0.00035616,10]
[402119633,1768529449235,-669.34,0.00035616,10]
[402119634,1768529449244,-500.0,0.00035616,10]
[402119635,1768529449255,-1168.3,0.00035616,10]
[402119636,1768529449264,-528.53407147,0.00035616,10]
[402119637,1768529449275,-500.0,0.00035616,10]
[402119638,1768529449289,-934.58,0.00035616,10]
[402119639,1768529449299,-582.08,0.00035616,10]
[402119640,1768529449309,-507.69910647,0.00035616,10]
[402119641,1768529449318,-505.98469534,0.00035616,10]
[402119642,1768529449328,-500.0,0.00035616,10]
[402119643,1768529449337,-834.41,0.00035616,10]
[402119644,1768529449347,-626.41,0.00035616,10]
[402119645,1768529449357,-500.0,0.00035616,10]
[402119646,1768529449366,-573.77252235,0.00035616,10]
[402119647,1768529449376,-500.0,0.00035616,10]
[402119648,1768529449386,-500.0,0.00035616,10]
[402119649,1768529449395,-500.0,0.00035616,10]
[402119650,1768529449404,-500.0,0.00035616,10]
[402119651,1768529449414,-604.95,0.00035616,10]
[402119652,1768529449424,-578.7634662,0.00035616,10]
[402119653,1768529449434,-500.0,0.00035616,10]
[402119654,1768529449444,-706.07,0.00035616,10]
[402119655,1768529449454,-560.71215991,0.00035616,10]
[402119656,1768529449464,-600.35,0.00035616,10]
[402119657,1768529449473,-853.24,0.00035616,10]
[402119658,1768529449483,-500.0,0.00035616,10]
[402119659,1768529449493,-500.0,0.00035616,10]
[402119660,1768529449502,-500.0,0.00035616,10]
[402119661,1768529449512,-504.35412319,0.00035616,10]
[402119662,1768529449522,-580.58,0.00035616,10]
[402119663,1768529449532,-507.36776744,0.00035616,10]
[402119664,1768529449542,-500.0,0.00035616,10]
[402119665,1768529449552,-539.7551802,0.00035616,10]
[402119666,1768529449561,-894.65,0.00035616,10]
[402119667,1768529449571,-730.61,0.00035616,10]
[402119668,1768529449581,-504.03288248,0.00035616,10]
[402119669,1768529449590,-1189.28,0.00035616,10]
[402119670,1768529449600,-500.0,0.00035616,10]
[402119671,1768529449609,-500.0,0.00035616,10]
[402119672,1768529449619,-1137.72,0.00035616,5]
[402119673,1768529449629,-534.66811304,0.00035616,10]
[402119674,1768529449638,-504.92967711,0.00035616,10]
[402119675,1768529449648,-504.83962164,0.00035616,10]
[402119676,1768529449658,-502.04370716,0.00035616,10]
[402119677,1768529449667,-1355.17,0.00035616,10]
[402119678,1768529449681,-500.0,0.00035616,10]
[402119679,1768529449690,-500.0,0.00035616,10]
[402119680,1768529449700,-500.0,0.00035616,10]
[402119681,1768529449710,-500.0,0.00035616,10]
[402119682,1768529449720,-921.03,0.00035616,10]
[402119683,1768529449730,-661.4,0.00035616,10]
[402119684,1768529449739,-502.01267079,0.00035616,10]
[402119685,1768529449749,-507.26,0.00035616,10]
[402119686,1768529449760,-500.0,0.00035616,10]
[402119687,1768529449770,-505.28128391,0.00035616,10]
[402119688,1768529449779,-861.76,0.00035616,10]
[402119689,1768529449789,-501.69661951,0.00035616,10]